{"text_format":"3","workbook":"xlsx","n_sheets":1,"sheets":["Жүгіру журналы"],"not_rendered":{"charts":2,"images":1,"defined_names":1},"read":"whole","date_system":"1900"}

{"sheet":"Жүгіру журналы","index":0,"n_rows":32,"n_cols":5,"rows_kept":32,"merged":[[21,1,21,4]]}
[]
[]
[]
[]
[]
[]
[null," СІЗДІҢ"]
[null," ЖҮГІРУ ЖИЫНТЫҒЫ"]
[null," АЙ","ЖҮГІРУЛЕР САНЫ","ЖАЛПЫ ҚАШЫҚТЫҚ (миля)","МАҚСАТТЫ ҚАШЫҚТЫҚ (миля)"]
[null,"2012-01-01",{"$f":"IFERROR(SUMPRODUCT( (MONTH(Журнал[ДЕРЕКТЕР])=MONTH('Жүгіру журналы'!$B10))*(YEAR(Журнал[ДЕРЕКТЕР])=YEAR('Жүгіру журналы'!$B10)) ),\"Енгізу күнін тексеру\")","v":5},{"$f":"IFERROR(SUMPRODUCT( (MONTH(Журнал[ДЕРЕКТЕР])=MONTH('Жүгіру журналы'!$B10))*(YEAR(Журнал[ДЕРЕКТЕР])=YEAR('Жүгіру журналы'!$B10)),Журнал[ҚАШЫҚТЫҚ (миля)]),\"Енгізу күнін тексеру\")","v":{"v":6.550000000000001,"d":"6.55"}},{"v":6,"d":"6.00"}]
[null,"2012-02-01",{"$f":"IFERROR(SUMPRODUCT( (MONTH(Журнал[ДЕРЕКТЕР])=MONTH('Жүгіру журналы'!$B11))*(YEAR(Журнал[ДЕРЕКТЕР])=YEAR('Жүгіру журналы'!$B11)) ),\"Енгізу күнін тексеру\")","v":2},{"$f":"IFERROR(SUMPRODUCT( (MONTH(Журнал[ДЕРЕКТЕР])=MONTH('Жүгіру журналы'!$B11))*(YEAR(Журнал[ДЕРЕКТЕР])=YEAR('Жүгіру журналы'!$B11)),Журнал[ҚАШЫҚТЫҚ (миля)]),\"Енгізу күнін тексеру\")","v":{"v":2.2,"d":"2.20"}},{"v":5,"d":"5.00"}]
[null,"2012-03-01",{"$f":"IFERROR(SUMPRODUCT( (MONTH(Журнал[ДЕРЕКТЕР])=MONTH('Жүгіру журналы'!$B12))*(YEAR(Журнал[ДЕРЕКТЕР])=YEAR('Жүгіру журналы'!$B12)) ),\"Енгізу күнін тексеру\")","v":0},{"$f":"IFERROR(SUMPRODUCT( (MONTH(Журнал[ДЕРЕКТЕР])=MONTH('Жүгіру журналы'!$B12))*(YEAR(Журнал[ДЕРЕКТЕР])=YEAR('Жүгіру журналы'!$B12)),Журнал[ҚАШЫҚТЫҚ (миля)]),\"Енгізу күнін тексеру\")","v":{"v":0,"d":"0.00"}},{"v":6,"d":"6.00"}]
[null,"2012-04-01",{"$f":"IFERROR(SUMPRODUCT( (MONTH(Журнал[ДЕРЕКТЕР])=MONTH('Жүгіру журналы'!$B13))*(YEAR(Журнал[ДЕРЕКТЕР])=YEAR('Жүгіру журналы'!$B13)) ),\"Енгізу күнін тексеру\")","v":0},{"$f":"IFERROR(SUMPRODUCT( (MONTH(Журнал[ДЕРЕКТЕР])=MONTH('Жүгіру журналы'!$B13))*(YEAR(Журнал[ДЕРЕКТЕР])=YEAR('Жүгіру журналы'!$B13)),Журнал[ҚАШЫҚТЫҚ (миля)]),\"Енгізу күнін тексеру\")","v":{"v":0,"d":"0.00"}},{"v":7,"d":"7.00"}]
[null,"2012-05-01",{"$f":"IFERROR(SUMPRODUCT( (MONTH(Журнал[ДЕРЕКТЕР])=MONTH('Жүгіру журналы'!$B14))*(YEAR(Журнал[ДЕРЕКТЕР])=YEAR('Жүгіру журналы'!$B14)) ),\"Енгізу күнін тексеру\")","v":0},{"$f":"IFERROR(SUMPRODUCT( (MONTH(Журнал[ДЕРЕКТЕР])=MONTH('Жүгіру журналы'!$B14))*(YEAR(Журнал[ДЕРЕКТЕР])=YEAR('Жүгіру журналы'!$B14)),Журнал[ҚАШЫҚТЫҚ (миля)]),\"Енгізу күнін тексеру\")","v":{"v":0,"d":"0.00"}},{"v":8,"d":"8.00"}]
[null,"2012-06-01",{"$f":"IFERROR(SUMPRODUCT( (MONTH(Журнал[ДЕРЕКТЕР])=MONTH('Жүгіру журналы'!$B15))*(YEAR(Журнал[ДЕРЕКТЕР])=YEAR('Жүгіру журналы'!$B15)) ),\"Енгізу күнін тексеру\")","v":0},{"$f":"IFERROR(SUMPRODUCT( (MONTH(Журнал[ДЕРЕКТЕР])=MONTH('Жүгіру журналы'!$B15))*(YEAR(Журнал[ДЕРЕКТЕР])=YEAR('Жүгіру журналы'!$B15)),Журнал[ҚАШЫҚТЫҚ (миля)]),\"Енгізу күнін тексеру\")","v":{"v":0,"d":"0.00"}},{"v":8,"d":"8.00"}]
[null,"2012-07-01",{"$f":"IFERROR(SUMPRODUCT( (MONTH(Журнал[ДЕРЕКТЕР])=MONTH('Жүгіру журналы'!$B16))*(YEAR(Журнал[ДЕРЕКТЕР])=YEAR('Жүгіру журналы'!$B16)) ),\"Енгізу күнін тексеру\")","v":0},{"$f":"IFERROR(SUMPRODUCT( (MONTH(Журнал[ДЕРЕКТЕР])=MONTH('Жүгіру журналы'!$B16))*(YEAR(Журнал[ДЕРЕКТЕР])=YEAR('Жүгіру журналы'!$B16)),Журнал[ҚАШЫҚТЫҚ (миля)]),\"Енгізу күнін тексеру\")","v":{"v":0,"d":"0.00"}},{"v":9,"d":"9.00"}]
[null,"2012-08-01",{"$f":"IFERROR(SUMPRODUCT( (MONTH(Журнал[ДЕРЕКТЕР])=MONTH('Жүгіру журналы'!$B17))*(YEAR(Журнал[ДЕРЕКТЕР])=YEAR('Жүгіру журналы'!$B17)) ),\"Енгізу күнін тексеру\")","v":0},{"$f":"IFERROR(SUMPRODUCT( (MONTH(Журнал[ДЕРЕКТЕР])=MONTH('Жүгіру журналы'!$B17))*(YEAR(Журнал[ДЕРЕКТЕР])=YEAR('Жүгіру журналы'!$B17)),Журнал[ҚАШЫҚТЫҚ (миля)]),\"Енгізу күнін тексеру\")","v":{"v":0,"d":"0.00"}},{"v":9,"d":"9.00"}]
[null,"2012-09-01",{"$f":"IFERROR(SUMPRODUCT( (MONTH(Журнал[ДЕРЕКТЕР])=MONTH('Жүгіру журналы'!$B18))*(YEAR(Журнал[ДЕРЕКТЕР])=YEAR('Жүгіру журналы'!$B18)) ),\"Енгізу күнін тексеру\")","v":0},{"$f":"IFERROR(SUMPRODUCT( (MONTH(Журнал[ДЕРЕКТЕР])=MONTH('Жүгіру журналы'!$B18))*(YEAR(Журнал[ДЕРЕКТЕР])=YEAR('Жүгіру журналы'!$B18)),Журнал[ҚАШЫҚТЫҚ (миля)]),\"Енгізу күнін тексеру\")","v":{"v":0,"d":"0.00"}},{"v":9.5,"d":"9.50"}]
[null,"2012-10-01",{"$f":"IFERROR(SUMPRODUCT( (MONTH(Журнал[ДЕРЕКТЕР])=MONTH('Жүгіру журналы'!$B19))*(YEAR(Журнал[ДЕРЕКТЕР])=YEAR('Жүгіру журналы'!$B19)) ),\"Енгізу күнін тексеру\")","v":0},{"$f":"IFERROR(SUMPRODUCT( (MONTH(Журнал[ДЕРЕКТЕР])=MONTH('Жүгіру журналы'!$B19))*(YEAR(Журнал[ДЕРЕКТЕР])=YEAR('Жүгіру журналы'!$B19)),Журнал[ҚАШЫҚТЫҚ (миля)]),\"Енгізу күнін тексеру\")","v":{"v":0,"d":"0.00"}},{"v":10,"d":"10.00"}]
[null,"2012-11-01",{"$f":"IFERROR(SUMPRODUCT( (MONTH(Журнал[ДЕРЕКТЕР])=MONTH('Жүгіру журналы'!$B20))*(YEAR(Журнал[ДЕРЕКТЕР])=YEAR('Жүгіру журналы'!$B20)) ),\"Енгізу күнін тексеру\")","v":0},{"$f":"IFERROR(SUMPRODUCT( (MONTH(Журнал[ДЕРЕКТЕР])=MONTH('Жүгіру журналы'!$B20))*(YEAR(Журнал[ДЕРЕКТЕР])=YEAR('Жүгіру журналы'!$B20)),Журнал[ҚАШЫҚТЫҚ (миля)]),\"Енгізу күнін тексеру\")","v":{"v":0,"d":"0.00"}},{"v":10,"d":"10.00"}]
[null,"2012-12-01",{"$f":"IFERROR(SUMPRODUCT( (MONTH(Журнал[ДЕРЕКТЕР])=MONTH('Жүгіру журналы'!$B21))*(YEAR(Журнал[ДЕРЕКТЕР])=YEAR('Жүгіру журналы'!$B21)) ),\"Енгізу күнін тексеру\")","v":0},{"$f":"IFERROR(SUMPRODUCT( (MONTH(Журнал[ДЕРЕКТЕР])=MONTH('Жүгіру журналы'!$B21))*(YEAR(Журнал[ДЕРЕКТЕР])=YEAR('Жүгіру журналы'!$B21)),Журнал[ҚАШЫҚТЫҚ (миля)]),\"Енгізу күнін тексеру\")","v":{"v":0,"d":"0.00"}},{"v":11,"d":"11.00"}]
[]
[null," СІЗДІҢ"]
[null," ЖҮГІРУ ЖУРНАЛЫ"]
[null,"ДЕРЕКТЕР","УАҚЫТ","ҚАШЫҚТЫҚ (миля)","ЖЫЛДАМДЫҚ (минут)"]
[null,"2012-01-01",0.006944444444444444,{"v":1.2,"d":"1.20"},{"$f":"IFERROR(MINUTE(Журнал[[#This Row],[УАҚЫТ]])/Журнал[[#This Row],[ҚАШЫҚТЫҚ (миля)]],0)","v":{"v":8.333333333333334,"d":"8.33"}}]
[null,"2012-01-03",0.008333333333333333,1.35,{"$f":"IFERROR(MINUTE(Журнал[[#This Row],[УАҚЫТ]])/Журнал[[#This Row],[ҚАШЫҚТЫҚ (миля)]],0)","v":{"v":8.888888888888888,"d":"8.89"}}]
[null,"2012-01-05",0.010069444444444445,1.45,{"$f":"IFERROR(MINUTE(Журнал[[#This Row],[УАҚЫТ]])/Журнал[[#This Row],[ҚАШЫҚТЫҚ (миля)]],0)","v":{"v":9.655172413793103,"d":"9.66"}}]
[null,"2012-01-08",0.009027777777777779,1.45,{"$f":"IFERROR(MINUTE(Журнал[[#This Row],[УАҚЫТ]])/Журнал[[#This Row],[ҚАШЫҚТЫҚ (миля)]],0)","v":{"v":8.965517241379311,"d":"8.97"}}]
[null,"2012-01-09",0.007175925925925926,{"v":1.1,"d":"1.10"},{"$f":"IFERROR(MINUTE(Журнал[[#This Row],[УАҚЫТ]])/Журнал[[#This Row],[ҚАШЫҚТЫҚ (миля)]],0)","v":{"v":9.09090909090909,"d":"9.09"}}]
[null,"2012-02-01",0.006319444444444444,{"v":1.1,"d":"1.10"},{"$f":"IFERROR(MINUTE(Журнал[[#This Row],[УАҚЫТ]])/Журнал[[#This Row],[ҚАШЫҚТЫҚ (миля)]],0)","v":{"v":8.181818181818182,"d":"8.18"}}]
[null,"2012-02-03",0.005555555555555556,{"v":1.1,"d":"1.10"},{"$f":"IFERROR(MINUTE(Журнал[[#This Row],[УАҚЫТ]])/Журнал[[#This Row],[ҚАШЫҚТЫҚ (миля)]],0)","v":{"v":7.2727272727272725,"d":"7.27"}}]